fUST/lending_fUST_20251014
["ID","MTS","AMOUNT","RATE_DAILY","PERIOD"]
[391177485,1760408426886,-500.0,0.00020979,2]
[391177486,1760408426909,-500.0,0.00020979,2]
[391177487,1760408426932,-500.0,0.00020979,2]
[391177488,1760408426954,-500.0,0.00020979,2]
[391177489,1760408426977,-500.0,0.00020979,2]
[391177490,1760408426999,-517.43615554,0.00020979,2]
[391177491,1760408427023,-500.0,0.00020979,2]
[391177492,1760408427047,-500.0,0.00020979,2]
[391177493,1760408427177,-185.54822724,0.00020979,2]
[391177494,1760408427200,-456.4,0.00020979,2]
[391177495,1760408427224,-500.0,0.00020979,2]
[391177496,1760408427246,-510.20629196,0.00020979,2]
[391177497,1760408427267,-500.0,0.00020979,2]
[391177498,1760408427293,-500.0,0.00020979,2]
[391177499,1760408427315,-500.0,0.00020979,2]
[391177500,1760408427336,-500.0,0.00020979,2]
[391177501,1760408427358,-511.47462111,0.00020979,2]
[391177502,1760408427379,-500.69765803,0.00020979,2]
[391177503,1760408427401,-500.0,0.00020979,2]
[391177504,1760408427422,-503.88385736,0.00020979,2]
[391177505,1760408427448,-500.0,0.00020979,2]
[391177506,1760408427470,-508.60448978,0.00020979,2]
[391177507,1760408427490,-500.0,0.00020979,2]
[391177508,1760408427512,-507.82656994,0.00020979,2]
[391177509,1760408427533,-605.84435192,0.00020979,2]
[391177510,1760408427554,-504.44943072,0.00020979,2]
[391177511,1760408427575,-500.0,0.00020979,2]
[391177512,1760408427599,-500.0,0.00020979,2]
[391177513,1760408427623,-500.0,0.00020979,2]
[391177514,1760408427645,-500.0,0.00020979,2]
[391177515,1760408427668,-295.05,0.00020979,2]
[391177516,1760408427690,-500.0,0.0002098,2]
[391177517,1760408427718,-500.0,0.0002098,2]
[391177518,1760408427740,-500.0,0.0002098,2]
[391177519,1760408427761,-500.0,0.0002098,2]
[391177520,1760408427782,-500.0,0.0002098,2]
[391177521,1760408427803,-500.0,0.0002098,2]
[391177522,1760408427824,-500.0,0.0002098,2]
[391177523,1760408427846,-500.0,0.0002098,2]
[391177524,1760408427868,-500.0,0.0002098,2]
[391177525,1760408427889,-500.0,0.0002098,2]
[391177526,1760408427910,-446.96080843,0.0002098,2]
[391177527,1760408427933,-150.0,0.0002098,2]
[391177528,1760408427955,-500.0,0.0002098,2]
[391177529,1760408427977,-500.0,0.0002098,2]
[391177530,1760408427999,-492.79287201,0.0002098,2]
[391177531,1760408428022,-500.0,0.0002098,2]
[391177532,1760408428046,-466.40200669,0.0002098,2]
[391177533,1760408428069,-500.0,0.0002098,2]
[391177534,1760408428090,-500.0,0.0002098,2]
[391177535,1760408428111,-500.0,0.0002098,2]
[391177536,1760408428133,-500.0,0.0002098,2]
[391177537,1760408428154,-500.0,0.0002098,2]
[391177538,1760408428175,-500.0,0.0002098,2]
[391177539,1760408428198,-500.0,0.0002098,2]
[391177540,1760408428219,-500.0,0.0002098,2]
[391177541,1760408428241,-500.0,0.0002098,2]
[391177542,1760408428264,-422.72179122,0.0002098,2]
[391177543,1760408428286,-500.0,0.0002098,2]
[391177544,1760408428307,-500.0,0.0002098,2]
[391177545,1760408428328,-500.0,0.0002098,2]
[391177546,1760408428350,-502.62831491,0.0002098,2]
[391177547,1760408428372,-500.0,0.0002098,2]
[391177548,1760408428393,-500.0,0.0002098,2]
[391177549,1760408428414,-500.0,0.0002098,2]
[391177550,1760408428440,-500.0,0.0002098,2]
[391177551,1760408428462,-401.72872381,0.0002098,2]
[391177552,1760408428483,-500.0,0.0002098,2]
[391177553,1760408428505,-558.79891128,0.0002098,2]
[391177554,1760408428528,-500.0,0.0002098,2]
[391177555,1760408428548,-500.56645956,0.0002098,2]
[391177556,1760408428573,-619.83498836,0.0002098,2]
[391177557,1760408428601,-514.21148654,0.0002098,2]
[391177558,1760408428629,-500.0,0.0002098,2]
[391177559,1760408428653,-638.59965098,0.0002098,2]
[391177560,1760408428678,-500.0,0.0002098,2]
[391177561,1760408428704,-500.0,0.0002098,2]
[391177562,1760408428731,-500.0,0.0002098,2]
[391177563,1760408428758,-500.0,0.0002098,2]
[391177564,1760408428783,-500.0,0.0002098,2]
[391177565,1760408428810,-500.0,0.0002098,2]
[391177566,1760408428836,-500.0,0.0002098,2]
[391177567,1760408428862,-500.0,0.0002098,2]
[391177568,1760408428888,-500.0,0.0002098,2]
[391177569,1760408428914,-500.0,0.0002098,2]
[391177570,1760408428942,-500.0,0.0002098,2]
[391177571,1760408428969,-500.0,0.0002098,2]
[391177572,1760408428994,-500.0,0.0002098,2]
[391177573,1760408429017,-500.0,0.0002098,2]
[391177574,1760408429043,-500.0,0.0002098,2]
[391177575,1760408429070,-500.0,0.0002098,2]
[391177576,1760408429096,-500.0,0.0002098,2]
[391177577,1760408429122,-500.0,0.0002098,2]
[391177578,1760408429149,-500.0,0.0002098,2]
[391177579,1760408429176,-500.0,0.0002098,2]
[391177580,1760408429207,-500.0,0.0002098,2]
[391177581,1760408429232,-440.45451593,0.0002098,2]
[391177582,1760408429255,-423.90742422,0.0002098,2]
[391177583,1760408429278,-1135.64,0.0002098,2]
[391177584,1760408429306,-1135.64,0.0002098,2]
[391177585,1760408429333,-1135.64,0.0002098,2]
[391177586,1760408429359,-1135.64,0.0002098,2]
[391177587,1760408429383,-1135.64,0.0002098,2]
[391177588,1760408429406,-1135.64,0.0002098,2]
[391177589,1760408429432,-1135.64,0.0002098,2]
[391177590,1760408429456,-1135.64,0.0002098,2]
[391177591,1760408429482,-595.14566431,0.0002098,2]
[391177592,1760408513805,1033.4308304,0.00020884,2]
[391177593,1760408535552,10000.01,0.00020879,2]
[391177594,1760408535573,10000.01,0.00020879,2]
[391177595,1760408535594,10000.01,0.00020879,2]
[391177596,1760408535615,10000.01,0.00020879,2]
[391177597,1760408535635,10000.01,0.00020879,2]
[391177598,1760408535659,10000.01,0.00020879,2]
[391177599,1760408535680,10000.01,0.00020879,2]
[391177600,1760408535701,10000.01,0.00020879,2]
[391177601,1760408535723,10000.01,0.00020879,2]
[391177602,1760408535744,10000.01,0.00020879,2]
[391177603,1760408535770,72688.90895238,0.00020879,2]
[391177604,1760408537123,-487.41213539,0.00020879,2]
[391177605,1760408539573,-260.65372218,0.00020879,2]
[391177606,1760408541663,-260.16086745,0.00020879,2]
[391177607,1760408543165,-300.0,0.00020879,2]
[391177608,1760408545343,-173.81100936,0.00020879,2]
[391177609,1760408552767,260.65372218,0.00020878,2]
[391177610,1760408552794,487.40280562,0.00020878,2]
[391177611,1760408552822,298.39424747,0.00020878,2]
[391177612,1760408552848,168.60401728,0.00020878,2]
[391177613,1760408552998,174.985,0.00020523,2]
[391177614,1760408553506,-533.41856438,0.00020879,2]
[391177615,1760408555240,5000.0,0.0002067,2]
[391177616,1760408555409,-296.50965992,0.00020879,2]
[391177617,1760408557882,-159.77093454,0.00020879,2]
[391177618,1760408561032,-189.1049393,0.00020879,2]
[391177619,1760408570330,3609.97020745,0.00020879,2]
[391177620,1760408570352,1390.02979255,0.00020879,2]
[391177621,1760408571059,-357.02762367,0.00020879,2]
[391177622,1760408572562,-300.0,0.00020879,2]
[391177623,1760408576185,-169.51297103,0.00020879,2]
[391177624,1760408578099,5000.0,0.00020879,2]
[391177625,1760408582334,300.0,0.00020878,2]
[391177626,1760408582916,-232.28040184,0.00020879,2]
[391177627,1760408584460,-260.63087444,0.00020879,2]
[391177628,1760408588528,-417.71959816,0.00020879,2]
[391177630,1760408593008,4700.01,0.00020879,2]
[391177631,1760408593030,299.99,0.00020879,2]
[391177632,1760408593928,-238.38815326,0.00020879,2]
[391177633,1760408595450,-223.02263188,0.00020879,2]
[391177635,1760408598039,-285.2868755,0.00020879,2]
[391177636,1760408600041,-168.0315653,0.00020879,2]
[391177637,1760408600870,203.1977619,0.00020879,2]
[391177638,1760408602113,-259.46948852,0.00020879,2]
[391177639,1760408605053,-162.62681016,0.00020879,2]
[391177640,1760408609184,357.1594391,0.00020878,2]
[391177641,1760408609990,-239.69440039,0.00020879,2]
[391177642,1760408612269,-325.70539461,0.00020879,2]
[391177643,1760408615410,-158.19736507,0.00020879,2]
[391177644,1760408615791,5000.0,0.00020879,2]
[391177645,1760408616335,500.0,0.00020878,2]
[391177646,1760408616368,500.0,0.00020878,2]
[391177647,1760408616395,500.0,0.00020878,2]
[391177648,1760408616429,542.1454975,0.00020878,2]
[391177649,1760408616455,500.0,0.00020878,2]
[391177650,1760408616484,500.0,0.00020878,2]
[391177651,1760408616510,500.0,0.00020878,2]
[391177652,1760408616536,164.26155733,0.00020878,2]
[391177653,1760408616565,500.0,0.00020878,2]
[391177654,1760408616596,183.54769992,0.00020878,2]
[391177655,1760408617235,-181.23276224,0.00020879,2]
[391177656,1760408619401,-263.35740283,0.00020879,2]
[391177657,1760408621636,-300.00559851,0.00020879,2]
[391177658,1760408623251,-166.95068233,0.00020879,2]
[391177659,1760408625654,-205.04921337,0.00020879,2]
[391177660,1760408627637,-295.40227718,0.00020879,2]
[391177661,1760408629970,-344.1081392,0.00020879,2]
[391177662,1760408630357,500.0,0.00020878,2]
[391177663,1760408630384,110.05524525,0.00020878,2]
[391177664,1760408630406,389.94475475,0.00020878,2]
[391177665,1760408630504,500.0,0.00020878,2]
[391177666,1760408630663,500.0,0.00020878,2]
[391177667,1760408630689,500.0,0.00020878,2]
[391177668,1760408630803,500.0,0.00020878,2]
[391177669,1760408631002,500.0,0.00020878,2]
[391177670,1760408631136,299.43400759,0.00020878,2]
[391177671,1760408631227,500.0,0.00020878,2]
[391177672,1760408631324,500.0,0.00020878,2]
[391177673,1760408631700,500.0,0.00020878,2]
[391177674,1760408632026,500.0,0.00020878,2]
[391177675,1760408632373,500.0,0.00020878,2]
[391177676,1760408632700,-272.01883202,0.00020879,2]
[391177677,1760408632738,500.0,0.00020878,2]
[391177678,1760408633060,500.0,0.00020878,2]
[391177679,1760408633442,648.21262129,0.00020878,2]
[391177680,1760408633498,500.0,0.00020878,2]
[391177681,1760408635325,-154.30745514,0.00020879,2]
[391177682,1760408638437,2162.41861637,0.00020879,2]
[391177683,1760408638459,2837.58138363,0.00020879,2]
[391177684,1760408639045,-214.72941379,0.00020879,2]
[391177685,1760408641371,151.0,8.4e-07,2]
[391177686,1760408641713,-156.76143765,0.00020879,2]
[391177687,1760408642207,300.0,0.00020878,2]
[391177688,1760408642460,151.0,8.4e-07,2]
[391177689,1760408643295,-455.9950664,0.00020879,2]
[391177690,1760408643503,151.0,8.4e-07,2]
[391177691,1760408644176,426.33,0.00020869,10]
[391177692,1760408644564,151.0,8.4e-07,2]
[391177693,1760408645604,151.0,8.4e-07,2]
[391177694,1760408649129,151.0,8.4e-07,2]
[391177695,1760408655913,827.48,0.00020869,10]
[391177696,1760408660657,4702.61861637,0.00020879,2]
[391177697,1760408660680,297.38138363,0.00020879,2]
[391177698,1760408671293,500.0,0.00020878,2]
[391177699,1760408671519,502.57024585,0.00020878,2]
[391177700,1760408675356,503.49910851,0.00020878,2]
[391177701,1760408680868,8196.55926201,0.000208,2]
[391177702,1760408680890,298.44073799,0.000208,2]
[391177705,1760408687574,500.0,0.00020878,2]
[391177706,1760408687825,500.0,0.00020878,2]
[391177707,1760408688068,500.0,0.00020878,2]
[391177708,1760408688322,500.0,0.00020878,2]
[391177709,1760408688731,500.0,0.00020878,2]
[391177710,1760408688837,500.0,0.00020878,2]
[391177711,1760408689097,500.0,0.00020878,2]
[391177712,1760408689351,500.0,0.00020878,2]
[391177713,1760408689588,500.0,0.00020878,2]
[391177714,1760408689843,500.0,0.00020878,2]
[391177715,1760408690137,500.0,0.00020878,2]
[391177716,1760408690368,500.0,0.00020878,2]
[391177717,1760408690617,500.0,0.00020878,2]
[391177718,1760408690865,500.0,0.00020878,2]
[391177719,1760408691092,500.0,0.00020878,2]
[391177720,1760408692501,500.0,0.00020878,2]
[391177721,1760408692751,500.0,0.00020878,2]
[391177722,1760408692980,500.0,0.00020878,2]
[391177723,1760408693225,500.0,0.00020878,2]
[391177724,1760408693523,541.91113999,0.00020878,2]
[391177725,1760408697377,500.0,0.00020878,2]
[391177726,1760408697606,500.0,0.00020878,2]
[391177727,1760408697854,500.0,0.00020878,2]
[391177728,1760408698084,500.0,0.00020878,2]
[391177729,1760408698340,500.0,0.00020878,2]
[391177730,1760408698571,500.0,0.00020878,2]
[391177731,1760408698800,500.0,0.00020878,2]
[391177732,1760408699057,500.0,0.00020878,2]
[391177733,1760408699305,500.0,0.00020878,2]
[391177734,1760408699626,500.0,0.00020878,2]
[391177735,1760408699869,500.0,0.00020878,2]
[391177736,1760408700110,500.0,0.00020878,2]
[391177737,1760408700344,500.0,0.00020878,2]
[391177738,1760408700579,500.0,0.00020878,2]
[391177739,1760408700815,500.0,0.00020878,2]
[391177740,1760408701062,500.0,0.00020878,2]
[391177741,1760408701301,500.0,0.00020878,2]
[391177742,1760408701550,500.0,0.00020878,2]
[391177743,1760408701780,500.0,0.00020878,2]
[391177744,1760408701947,300.0,0.00020878,2]
[391177745,1760408702028,500.0,0.00020878,2]
[391177746,1760408702287,500.0,0.00020878,2]
[391177747,1760408702614,500.0,0.00020878,2]
[391177748,1760408702693,300.0,0.00020878,2]
[391177749,1760408702846,520.23668976,0.00020878,2]
[391177750,1760408703348,1200.0,0.00020878,2]
[391177751,1760408707380,507.28090977,0.00020878,2]
[391177764,1760408713383,2672.49240047,0.00020879,2]
[391177765,1760408713427,7327.50759953,0.00020879,2]
[391177766,1760408713484,645.09,0.00020878,2]
[391177767,1760408713733,645.09,0.00020878,2]
[391177768,1760408713987,645.09,0.00020878,2]
[391177769,1760408714250,645.09,0.00020878,2]
[391177770,1760408714672,92.14240047,0.00020878,2]
[391177771,1760408714696,552.94759953,0.00020878,2]
[391177772,1760408714931,645.09,0.00020878,2]
[391177773,1760408715187,645.09,0.00020878,2]
[391177774,1760408715414,645.09,0.00020878,2]
[391177775,1760408715673,645.09,0.00020878,2]
[391177776,1760408715924,645.09,0.00020878,2]
[391177777,1760408716146,645.09,0.00020878,2]
[391177778,1760408716372,645.09,0.00020878,2]
[391177779,1760408716629,645.09,0.00020878,2]
[391177780,1760408716859,645.09,0.00020878,2]
[391177781,1760408717369,645.09,0.00020878,2]
[391177782,1760408717605,645.09,0.00020878,2]
[391177783,1760408717931,645.09,0.00020878,2]
[391177784,1760408718183,645.09,0.00020878,2]
[391177785,1760408718537,645.09,0.00020878,2]
[391177786,1760408718656,645.09,0.00020878,2]
[391177787,1760408718880,645.09,0.00020878,2]
[391177788,1760408719122,645.09,0.00020878,2]
[391177789,1760408719350,645.09,0.00020878,2]
[391177791,1760408719592,645.14,0.00020878,2]
[391177792,1760408725762,1613.79,0.00020879,2]
[391177793,1760408725785,1623.99882907,0.00020879,2]
[391177794,1760408729180,300.0,0.000154,2]
[391177795,1760408730041,458.64960449,0.000208,2]
[391177796,1760408739433,300.0,0.000137,2]
[391177797,1760408741786,5000.0,0.00020879,2]
[391177798,1760408750449,300.0,0.000137,2]
[391177799,1760408755633,500.0,0.00020878,2]
[391177800,1760408755871,500.0,0.00020878,2]
[391177801,1760408756103,500.0,0.00020878,2]
[391177802,1760408756327,500.0,0.00020878,2]
[391177803,1760408756674,17.36156644,0.00020878,2]
[391177804,1760408756699,482.63843356,0.00020878,2]
[391177805,1760408756864,500.0,0.00020878,2]
[391177806,1760408757098,500.0,0.00020878,2]
[391177807,1760408757351,500.0,0.00020878,2]
[391177808,1760408757578,500.0,0.00020878,2]
[391177809,1760408757931,504.66,0.00020878,2]
[391177810,1760408758555,151.0,0.000181,2]
[391177811,1760408761246,300.0,0.000137,2]
[391177812,1760408762611,300.0,0.00020878,2]
[391177813,1760408763101,396.7337551,0.00020878,2]
[391177814,1760408764147,5000.0,0.00020879,2]
[391177815,1760408769381,864.97781134,0.00020878,2]
[391177816,1760408769404,857.40690598,0.00020878,2]
[391177817,1760408772071,4381.36886006,0.00020879,2]
[391177818,1760408772765,300.0,0.000137,2]
[391177819,1760408773017,482.65147374,0.00020878,2]
[391177820,1760408784071,300.0,0.000154,2]
[391177821,1760408787440,-5000.0,0.0002067,2]
[391177822,1760408788754,-8080.45168107,0.00020879,2]
[391177823,1760408788853,-10000.01,0.00020879,2]
[391177824,1760408790483,-10000.01,0.00020879,2]
[391177825,1760408792534,-10000.01,0.00020879,2]
[391177826,1760408792646,-10000.01,0.00020879,2]
[391177827,1760408795559,300.0,0.000137,2]
[391177828,1760408796670,-335.3355705,0.0002067,2]
[391177829,1760408799589,-245.87392014,0.0002067,2]
[391177830,1760408800495,-4418.79050936,0.0002067,2]
[391177831,1760408800533,-500.0,0.00020878,2]
[391177832,1760408800591,-162.42898128,0.00020878,2]
[391177833,1760408800749,-337.57101872,0.00020878,2]
[391177834,1760408800778,-500.0,0.00020878,2]
[391177835,1760408800806,-363.07902472,0.00020878,2]
[391177836,1760408800836,-2803.75991312,0.00020878,2]
[391177837,1760408800900,-1991.19008688,0.00020878,2]
[391177838,1760408800996,-4794.95,0.00020878,2]
[391177839,1760408801034,-410.11,0.00020878,2]
[391177840,1760408801390,-4384.84,0.00020878,2]
[391177841,1760408801482,-4794.95,0.00020878,2]
[391177842,1760408801530,-1230.33,0.00020878,2]
[391177843,1760408801547,-410.11,0.00020878,2]
[391177844,1760408801663,-3154.51,0.00020878,2]
[391177845,1760408801696,-3690.99,0.00020878,2]
[391177846,1760408801924,-1103.96,0.00020878,2]
[391177847,1760408801954,-2997.14,0.00020878,2]
[391177848,1760408801993,-1797.81,0.00020878,2]
[391177849,1760408802190,-4794.95,0.00020878,2]
[391177850,1760408802233,-410.11,0.00020878,2]
[391177851,1760408805125,-4384.84,0.00020878,2]
[391177852,1760408805147,-4794.95,0.00020878,2]
[391177853,1760408805170,-4794.95,0.00020878,2]
[391177854,1760408805191,-258.814567,0.00020878,2]
[391177855,1760408805724,300.0,0.000137,2]
[391177856,1760408806649,-4536.135433,0.00020878,2]
[391177857,1760408806686,-927.739134,0.00020878,2]
[391177858,1760408806730,-3867.210866,0.00020878,2]
[391177859,1760408806764,-2265.588268,0.00020878,2]
[391177860,1760408806874,-2529.361732,0.00020878,2]
[391177861,1760408806906,-146.336536,0.00020878,2]
[391177862,1760408806941,-4648.613464,0.00020878,2]
[391177863,1760408807014,-500.0,0.00020878,2]
[391177864,1760408807046,-4205.06,0.00020878,2]
[391177865,1760408807087,-589.89,0.00020878,2]
[391177866,1760408807132,-500.62769502,0.00020878,2]
[391177867,1760408807163,-4203.80460996,0.00020878,2]
[391177868,1760408807199,-591.14539004,0.00020878,2]
[391177869,1760408812048,300.0,0.000137,2]
[391177870,1760408812659,-305.8492098,0.00020669,2]
[391177871,1760408812692,-4694.1507902,0.00020669,2]
[391177872,1760408812720,-111.7084196,0.00020878,2]
[391177873,1760408812754,-388.2915804,0.00020878,2]
[391177874,1760408812798,-4794.95,0.00020878,2]
[391177875,1760408812836,-410.11,0.00020878,2]
[391177876,1760408812943,-4384.84,0.00020878,2]
[391177877,1760408812977,-1230.33,0.00020878,2]
[391177878,1760408813048,-3564.62,0.00020878,2]
[391177879,1760408813092,-2870.77,0.00020878,2]
[391177880,1760408814964,-1924.18,0.00020878,2]
[391177881,1760408814995,-1356.7,0.00020878,2]
[391177882,1760408815034,-3438.25,0.00020878,2]
[391177883,1760408815113,-4794.95,0.00020878,2]
[391177884,1760408815146,-410.11,0.00020878,2]
[391177885,1760408815224,-4384.93758764,0.00020878,2]
[391177886,1760408815251,-500.0,0.00020878,2]
[391177887,1760408815301,-230.13482472,0.00020878,2]
[391177888,1760408816845,-269.86517528,0.00020878,2]
[391177889,1760408816873,-500.0,0.00020878,2]
[391177890,1760408816900,-500.0,0.00020878,2]
[391177891,1760408816930,-500.0,0.00020878,2]
[391177892,1760408816959,-500.0,0.00020878,2]
[391177893,1760408816985,-511.54,0.00020878,2]
[391177894,1760408817012,-500.0,0.00020878,2]
[391177895,1760408817038,-500.0,0.00020878,2]
[391177896,1760408817065,-500.0,0.00020878,2]
[391177897,1760408817093,-500.0,0.00020878,2]
[391177898,1760408817231,-1968.1,0.00020878,2]
[391177899,1760408817323,-3936.2,0.00020878,2]
[391177900,1760408817352,-2127.61,0.00020878,2]
[391177901,1760408817361,-437.19964944,0.00020878,2]
[391177902,1760408817396,-62.80035056,0.00020878,2]
[391177903,1760408817428,-1842.49929888,0.00020878,2]
[391177904,1760408817461,-4158.51035056,0.00020878,2]
[391177905,1760408817474,-62.80035056,0.00020878,2]
[391177906,1760408817488,-1968.1,0.00020878,2]
[391177907,1760408817497,-500.0,0.00020878,2]
[391177908,1760408817505,-5563.81,0.00020878,2]
[391177909,1760408817540,-2468.1,0.00020878,2]
[391177910,1760408817568,-500.0,0.00020878,2]
[391177911,1760408817734,-1968.1,0.00020878,2]
[391177912,1760408817780,-2095.71,0.00020878,2]
[391177913,1760408817800,-3968.1,0.00020878,2]
[391177914,1760408817809,-500.0,0.00020878,2]
[391177915,1760408817818,-3563.81,0.00020878,2]
[391177916,1760408822794,-300.0,0.00020877,2]
[391177917,1760408822826,-4468.1,0.00020878,2]
[391177918,1760408822864,151.0,0.000181,2]
[391177919,1760408822902,-463.81,0.00020878,2]
[391177920,1760408822938,-36.19,0.00020878,2]
[391177921,1760408822968,-1895.72,0.00020878,2]
[391177922,1760408823011,-6136.19,0.00020878,2]
[391177923,1760408823052,-500.0,0.00020878,2]
[391177924,1760408823082,-968.1,0.00020878,2]
[391177925,1760408823117,-7063.81,0.00020878,2]
[391177926,1760408823151,-500.0,0.00020878,2]
[391177927,1760408823181,-968.1,0.00020878,2]
[391177928,1760408823216,-7063.81,0.00020878,2]
[391177929,1760408823292,-500.0,0.00020878,2]
[391177930,1760408823323,-968.1,0.00020878,2]
[391177931,1760408823359,-7063.81,0.00020878,2]
[391177932,1760408823403,300.0,0.000137,2]
[391177933,1760408823829,151.0,0.00018266,2]
[391177934,1760408824875,151.0,0.00018433,2]
[391177935,1760408825937,151.0,0.000186,2]
[391177936,1760408826956,151.0,0.00018766,2]
[391177937,1760408828065,151.0,0.00018933,2]
[391177938,1760408828827,-500.0,0.00020878,2]
[391177939,1760408828860,-968.1,0.00020878,2]
[391177940,1760408828897,-7063.81,0.00020878,2]
[391177941,1760408828955,-500.0,0.00020878,2]
[391177942,1760408828988,-968.1,0.00020878,2]
[391177943,1760408829026,-7063.81,0.00020878,2]
[391177944,1760408829271,-1968.1,0.00020878,2]
[391177945,1760408829301,-6063.81,0.00020878,2]
[391177946,1760408829394,-1968.1,0.00020878,2]
[391177947,1760408829417,-6063.81,0.00020878,2]
[391177948,1760408829517,-500.0,0.00020878,2]
[391177949,1760408829554,-968.1,0.00020878,2]
[391177950,1760408829592,-7063.81,0.00020878,2]
[391177951,1760408829639,-583.19,0.00020878,2]
[391177952,1760408829667,-801.72,0.00020878,2]
[391177953,1760408829706,-7230.19,0.00020878,2]
[391177954,1760408832971,-1968.1,0.00020878,2]
[391177955,1760408832994,-6063.81,0.00020878,2]
[391177956,1760408833184,-1968.1,0.00020878,2]
[391177957,1760408833207,-6063.81,0.00020878,2]
[391177958,1760408833266,-1968.1,0.00020878,2]
[391177959,1760408833288,-6063.81,0.00020878,2]
[391177960,1760408833376,-1968.1,0.00020878,2]
[391177961,1760408833400,-6063.81,0.00020878,2]
[391177962,1760408833501,-5000.0,0.00020669,2]
[391177963,1760408833536,-0.01,0.00020878,2]
[391177964,1760408833836,300.0,0.000137,2]
[391177965,1760408837045,-1968.11,0.00020878,2]
[391177966,1760408837066,-6063.79,0.00020878,2]
[391177967,1760408837165,-1968.1,0.00020878,2]
[391177968,1760408837188,-6063.81,0.00020878,2]
[391177969,1760408837317,-1968.1,0.00020878,2]
[391177970,1760408837349,-6063.81,0.00020878,2]
[391177971,1760408837494,-500.0,0.00020878,2]
[391177972,1760408837524,-968.1,0.00020878,2]
[391177973,1760408837569,-7063.81,0.00020878,2]
[391177974,1760408837625,-500.0,0.00020878,2]
[391177975,1760408837654,-967.9651133,0.00020878,2]
[391177976,1760408837694,-7064.0797734,0.00020878,2]
[391177977,1760408837775,-500.0,0.00020878,2]
[391177978,1760408837804,-500.0,0.00020878,2]
[391177979,1760408837832,-500.0,0.00020878,2]
[391177980,1760408837862,-266.1,0.00020878,2]
[391177981,1760408837891,-500.0,0.00020878,2]
[391177982,1760408837921,-500.0,0.00020878,2]
[391177983,1760408837951,-500.0,0.00020878,2]
[391177984,1760408837979,-500.0,0.00020878,2]
[391177985,1760408838007,-500.0,0.00020878,2]
[391177986,1760408838035,-500.0,0.00020878,2]
[391177987,1760408838371,-467.81,0.00020878,2]
[391177988,1760408842953,-32.19,0.00020878,2]
[391177989,1760408842980,-500.0,0.00020878,2]
[391177990,1760408843009,-318.41071998,0.00020878,2]
[391177991,1760408843038,-500.0,0.00020878,2]
[391177992,1760408843070,-500.0,0.00020878,2]
[391177993,1760408843099,-500.0,0.00020878,2]
[391177994,1760408843128,-500.0,0.00020878,2]
[391177995,1760408843157,-500.0,0.00020878,2]
[391177996,1760408843333,-5000.0,0.00020878,2]
[391177997,1760408843427,-500.0,0.00020878,2]
[391177998,1760408843457,-500.0,0.00020878,2]
[391177999,1760408843487,-500.0,0.00020878,2]
[391178000,1760408843517,-500.0,0.00020878,2]
[391178001,1760408843547,-500.0,0.00020878,2]